[Event "*** Titled Tuesday Blitz"]
[Site "Chess.com"]
[Date "2020.04.14"]
[Round "1"]
[White "Nbk90"]
[Black "BelaKis"]
[Result "1-0"]
[WhiteElo "2535"]
[BlackElo "2084"]
[TimeControl "180+1"]
[EndTime "10:07:28 PDT"]
[Termination "Nbk90 won on time"]

1. e4 {[%clk 0:03:00.7]} 1... e5 {[%clk 0:02:54.3]} 2. Nf3 {[%clk 0:03:00.2]}
2... Nc6 {[%clk 0:02:54.5]} 3. Bb5 {[%clk 0:02:59.7]} 3... a6 {[%clk 0:02:53.4]}
4. Ba4 {[%clk 0:02:58.1]} 4... Nf6 {[%clk 0:02:52.4]} 5. d3 {[%clk 0:02:57.4]}
5... b5 {[%clk 0:02:43.1]} 6. Bb3 {[%clk 0:02:57]} 6... Be7 {[%clk 0:02:43.4]}
7. a3 {[%clk 0:02:56.4]} 7... O-O {[%clk 0:02:40.5]} 8. Nc3 {[%clk 0:02:55.9]}
8... d6 {[%clk 0:02:36.3]} 9. h3 {[%clk 0:02:55.5]} 9... Be6 {[%clk 0:02:28.9]}
10. Nd5 {[%clk 0:02:53.1]} 10... Nd4 {[%clk 0:02:11.1]} 11. Nxd4 {[%clk
0:02:50.6]} 11... exd4 {[%clk 0:02:10.8]} 12. Nxf6+ {[%clk 0:02:42.3]} 12...
Bxf6 {[%clk 0:02:09.5]} 13. Bxe6 {[%clk 0:02:39.4]} 13... fxe6 {[%clk
0:02:08.9]} 14. O-O {[%clk 0:02:40.1]} 14... e5 {[%clk 0:02:01.7]} 15. Bd2
{[%clk 0:02:39]} 15... Bg5 {[%clk 0:01:56.4]} 16. a4 {[%clk 0:02:36.8]} 16...
Bf4 {[%clk 0:01:28.1]} 17. Ba5 {[%clk 0:02:06]} 17... Qd7 {[%clk 0:01:21.9]} 18.
Qg4 {[%clk 0:02:03.6]} 18... Qf7 {[%clk 0:00:52.4]} 19. c3 {[%clk 0:01:35.2]}
19... dxc3 {[%clk 0:00:49.2]} 20. Bxc3 {[%clk 0:01:34.6]} 20... c5 {[%clk
0:00:47.7]} 21. g3 {[%clk 0:01:11.1]} 21... h5 {[%clk 0:00:40.6]} 22. Qf5 {[%clk
0:00:59.6]} 22... Qxf5 {[%clk 0:00:20.6]} 23. exf5 {[%clk 0:01:00.5]} 23... Bg5
{[%clk 0:00:20.5]} 24. b4 {[%clk 0:00:45.9]} 24... cxb4 {[%clk 0:00:13.1]} 25.
Bxb4 {[%clk 0:00:44.8]} 25... Be7 {[%clk 0:00:12.6]} 26. axb5 {[%clk 0:00:38.7]}
26... axb5 {[%clk 0:00:12.2]} 27. g4 {[%clk 0:00:35.2]} 27... hxg4 {[%clk
0:00:10.5]} 28. hxg4 {[%clk 0:00:36.1]} 28... Rfc8 {[%clk 0:00:08.7]} 29. Rxa8
{[%clk 0:00:26.6]} 29... Rxa8 {[%clk 0:00:07.6]} 30. Rb1 {[%clk 0:00:24.2]}
30... Kf8 {[%clk 0:00:06.2]} 31. Kg2 {[%clk 0:00:21.1]} 31... Rb8 {[%clk
0:00:04.1]} 32. Kf3 {[%clk 0:00:20.9]} 32... d5 {[%clk 0:00:04.3]} 33. Bxe7+
{[%clk 0:00:14.8]} 33... Kxe7 {[%clk 0:00:05.2]} 34. d4 {[%clk 0:00:15]} 34...
e4+ {[%clk 0:00:04.8]} 35. Kf4 {[%clk 0:00:14.9]} 35... Kd6 {[%clk 0:00:05.5]}
36. g5 {[%clk 0:00:15.3]} 36... b4 {[%clk 0:00:05.6]} 37. g6 {[%clk 0:00:14.9]}
37... b3 {[%clk 0:00:04.4]} 38. Kg5 {[%clk 0:00:14.8]} 1-0

[Event "*** Titled Tuesday Blitz"]
[Site "Chess.com"]
[Date "2020.04.14"]
[Round "1"]
[White "Nafania1"]
[Black "donotreadit"]
[Result "0-1"]
[WhiteElo "2377"]
[BlackElo "2729"]
[TimeControl "180+1"]
[EndTime "10:07:29 PDT"]
[Termination "donotreadit won by resignation"]

1. e4 {[%clk 0:03:00.9]} 1... c5 {[%clk 0:02:54.7]} 2. Nf3 {[%clk 0:03:00.5]}
2... e6 {[%clk 0:02:54.9]} 3. g3 {[%clk 0:02:59.8]} 3... Nc6 {[%clk 0:02:54.2]}
4. Bg2 {[%clk 0:02:59.6]} 4... Nf6 {[%clk 0:02:52.4]} 5. Qe2 {[%clk 0:02:59.7]}
5... e5 {[%clk 0:02:49]} 6. O-O {[%clk 0:02:58.3]} 6... Be7 {[%clk 0:02:49.5]}
7. c3 {[%clk 0:02:56.8]} 7... O-O {[%clk 0:02:45.7]} 8. d3 {[%clk 0:02:56.8]}
8... d6 {[%clk 0:02:35.8]} 9. a3 {[%clk 0:02:55]} 9... b5 {[%clk 0:02:35.4]} 10.
a4 {[%clk 0:02:50.2]} 10... b4 {[%clk 0:02:32.1]} 11. Nbd2 {[%clk 0:02:46.1]}
11... bxc3 {[%clk 0:02:28.5]} 12. bxc3 {[%clk 0:02:45.9]} 12... Rb8 {[%clk
0:02:29.1]} 13. Nc4 {[%clk 0:02:45.8]} 13... Ba6 {[%clk 0:02:26.6]} 14. Bg5
{[%clk 0:02:44.7]} 14... Bxc4 {[%clk 0:02:17.2]} 15. dxc4 {[%clk 0:02:44.5]}
15... Nd7 {[%clk 0:02:03.4]} 16. Bxe7 {[%clk 0:02:44.1]} 16... Qxe7 {[%clk
0:02:03.9]} 17. Rfb1 {[%clk 0:02:24]} 17... Rxb1+ {[%clk 0:01:49.8]} 18. Rxb1
{[%clk 0:02:23.8]} 18... Rb8 {[%clk 0:01:50.4]} 19. Rxb8+ {[%clk 0:02:23.4]}
19... Ndxb8 {[%clk 0:01:51.3]} 20. Qb2 {[%clk 0:02:14.9]} 20... Qc7 {[%clk
0:01:51.1]} 21. Nd2 {[%clk 0:02:01.9]} 21... Nd7 {[%clk 0:01:44.6]} 22. Qb5
{[%clk 0:01:48.8]} 22... Qb6 {[%clk 0:01:32.8]} 23. Bh3 {[%clk 0:01:48.7]} 23...
a6 {[%clk 0:01:32.9]} 24. Qb3 {[%clk 0:01:08.2]} 24... Qxb3 {[%clk 0:01:32]} 25.
Nxb3 {[%clk 0:01:08.3]} 25... Nb6 {[%clk 0:01:32.7]} 26. a5 {[%clk 0:01:08.7]}
26... Nxc4 {[%clk 0:01:31.4]} 27. Bc8 {[%clk 0:01:07.4]} 27... N6xa5 {[%clk
0:01:26.4]} 28. Nxa5 {[%clk 0:01:04.8]} 28... Nxa5 {[%clk 0:01:27.3]} 29. Bxa6
{[%clk 0:01:04.9]} 29... Nc6 {[%clk 0:01:22]} 30. Bc4 {[%clk 0:01:02.4]} 30...
Kf8 {[%clk 0:01:22]} 31. f4 {[%clk 0:01:01.2]} 31... f6 {[%clk 0:01:18.2]} 32.
Kf2 {[%clk 0:01:01.2]} 32... Ke7 {[%clk 0:01:17.2]} 33. h4 {[%clk 0:01:00.6]}
33... Kd8 {[%clk 0:01:08.9]} 34. Bg8 {[%clk 0:01:00.4]} 34... h6 {[%clk
0:01:08.8]} 35. Kf3 {[%clk 0:01:00.7]} 35... Ne7 {[%clk 0:01:08.9]} 36. Be6
{[%clk 0:00:57.9]} 36... Kc7 {[%clk 0:01:08.5]} 37. g4 {[%clk 0:00:57.8]} 37...
exf4 {[%clk 0:00:54.4]} 38. Kxf4 {[%clk 0:00:57.8]} 38... g5+ {[%clk 0:00:50.1]}
39. hxg5 {[%clk 0:00:45.4]} 39... hxg5+ {[%clk 0:00:46.3]} 40. Ke3 {[%clk
0:00:43.1]} 40... Ng6 {[%clk 0:00:46]} 41. Kd2 {[%clk 0:00:27.1]} 41... Kb6
{[%clk 0:00:42.7]} 42. Kc2 {[%clk 0:00:26.3]} 42... Ne5 {[%clk 0:00:32.5]} 43.
Kb3 {[%clk 0:00:24.1]} 43... Kb5 {[%clk 0:00:32.7]} 44. c4+ {[%clk 0:00:20.7]}
44... Ka5 {[%clk 0:00:33.2]} 45. Ka3 {[%clk 0:00:20.3]} 45... Nf3 {[%clk
0:00:32.1]} 46. Bd5 {[%clk 0:00:16.2]} 46... Nd2 {[%clk 0:00:29.3]} 47. Kb2
{[%clk 0:00:09.9]} 47... Kb4 {[%clk 0:00:29.6]} 48. Kc2 {[%clk 0:00:10]} 48...
Nxc4 {[%clk 0:00:30.1]} 0-1

[Event "*** Titled Tuesday Blitz"]
[Site "Chess.com"]
[Date "2020.04.14"]
[Round "1"]
[White "ssrija97"]
[Black "crywolf1986"]
[Result "0-1"]
[WhiteElo "2220"]
[BlackElo "2597"]
[TimeControl "180+1"]
[EndTime "10:07:29 PDT"]
[Termination "crywolf1986 won on time"]

1. e4 {[%clk 0:02:53.6]} 1... c6 {[%clk 0:02:59.2]} 2. d4 {[%clk 0:02:47.8]}
2... d5 {[%clk 0:02:59.4]} 3. e5 {[%clk 0:02:45.3]} 3... Bf5 {[%clk 0:02:58.7]}
4. Nf3 {[%clk 0:02:45]} 4... e6 {[%clk 0:02:57.1]} 5. Be2 {[%clk 0:02:44.8]}
5... Nd7 {[%clk 0:02:52.5]} 6. O-O {[%clk 0:02:44.1]} 6... Ne7 {[%clk
0:02:52.5]} 7. a4 {[%clk 0:02:27.5]} 7... Bg6 {[%clk 0:02:51.6]} 8. a5 {[%clk
0:02:13.8]} 8... Nf5 {[%clk 0:02:47.3]} 9. Nbd2 {[%clk 0:02:10.6]} 9... Be7
{[%clk 0:02:45.8]} 10. Nb3 {[%clk 0:02:02.8]} 10... O-O {[%clk 0:02:44.5]} 11.
g4 {[%clk 0:02:01.6]} 11... Nh4 {[%clk 0:02:43.6]} 12. Nxh4 {[%clk 0:02:01.7]}
12... Bxh4 {[%clk 0:02:44.5]} 13. f4 {[%clk 0:01:59.4]} 13... Be4 {[%clk
0:02:38.7]} 14. g5 {[%clk 0:01:22.6]} 14... f6 {[%clk 0:02:37.6]} 15. Bg4 {[%clk
0:01:18.7]} 15... Qe7 {[%clk 0:02:35.2]} 16. gxf6 {[%clk 0:00:39.7]} 16... gxf6
{[%clk 0:02:33.8]} 17. Be3 {[%clk 0:00:28.9]} 17... f5 {[%clk 0:02:32.3]} 18.
Bf3 {[%clk 0:00:26.4]} 18... Kh8 {[%clk 0:02:32.1]} 19. Kh1 {[%clk 0:00:26.2]}
19... Qg7 {[%clk 0:02:27.8]} 20. Rg1 {[%clk 0:00:23.1]} 20... Qh6 {[%clk
0:02:27.5]} 21. Bxe4 {[%clk 0:00:22]} 21... dxe4 {[%clk 0:02:20.7]} 22. c4
{[%clk 0:00:21.2]} 22... Rg8 {[%clk 0:02:10.6]} 23. Qe2 {[%clk 0:00:21.2]} 23...
Be7 {[%clk 0:02:03.5]} 24. d5 {[%clk 0:00:20.3]} 24... Rxg1+ {[%clk 0:01:52.5]}
25. Rxg1 {[%clk 0:00:15.8]} 25... Rg8 {[%clk 0:01:51.8]} 26. d6 {[%clk
0:00:12.8]} 26... Bd8 {[%clk 0:01:49.5]} 27. Rxg8+ {[%clk 0:00:11.5]} 27... Kxg8
{[%clk 0:01:49.2]} 28. Qg2+ {[%clk 0:00:11.6]} 28... Kf7 {[%clk 0:01:48.9]} 29.
Nd4 {[%clk 0:00:09.6]} 29... Nf8 {[%clk 0:01:40.5]} 30. Ne2 {[%clk 0:00:08.5]}
30... Ng6 {[%clk 0:01:40]} 31. Bxa7 {[%clk 0:00:05.8]} 31... Nh4 {[%clk
0:01:38.9]} 32. Qf2 {[%clk 0:00:04.8]} 32... Nf3 {[%clk 0:01:38.1]} 33. Bb6
{[%clk 0:00:03.9]} 33... Bh4 {[%clk 0:01:37.3]} 34. Qg2 {[%clk 0:00:03.6]} 34...
Nd2 {[%clk 0:01:25.2]} 35. d7 {[%clk 0:00:04.4]} 35... Qf8 {[%clk 0:01:15.8]}
36. d8=Q {[%clk 0:00:04.2]} 36... Bxd8 {[%clk 0:01:14.7]} 37. Qh3 {[%clk
0:00:03.3]} 37... Bxb6 {[%clk 0:01:13]} 38. Qxh7+ {[%clk 0:00:03.3]} 38... Qg7
{[%clk 0:01:13.3]} 39. Qxg7+ {[%clk 0:00:02.5]} 39... Kxg7 {[%clk 0:01:13.2]}
40. axb6 {[%clk 0:00:01.4]} 40... Nxc4 {[%clk 0:01:13.1]} 41. Nd4 {[%clk
0:00:02.3]} 41... Kf7 {[%clk 0:01:07.8]} 42. Nxc6 {[%clk 0:00:01.5]} 42... e3
{[%clk 0:01:02.1]} 0-1

[Event "*** Titled Tuesday Blitz"]
[Site "Chess.com"]
[Date "2020.04.14"]
[Round "1"]
[White "RuperezA"]
[Black "starworld123"]
[Result "0-1"]
[WhiteElo "2233"]
[BlackElo "2603"]
[TimeControl "180+1"]
[EndTime "10:07:30 PDT"]
[Termination "starworld123 won by resignation"]

1. e4 {[%clk 0:03:00.1]} 1... c5 {[%clk 0:03:00]} 2. Nf3 {[%clk 0:02:59.6]} 2...
d6 {[%clk 0:03:00.6]} 3. Bb5+ {[%clk 0:02:59.2]} 3... Nd7 {[%clk 0:03:00.6]} 4.
O-O {[%clk 0:02:58.4]} 4... Nf6 {[%clk 0:03:00.9]} 5. Re1 {[%clk 0:02:58.1]}
5... a6 {[%clk 0:03:01.3]} 6. Bd3 {[%clk 0:02:58]} 6... b6 {[%clk 0:03:01.3]} 7.
c3 {[%clk 0:02:58.1]} 7... Ne5 {[%clk 0:03:01.9]} 8. Bc2 {[%clk 0:02:59]} 8...
Bg4 {[%clk 0:03:00.4]} 9. d4 {[%clk 0:02:56.5]} 9... Nxf3+ {[%clk 0:03:00.7]}
10. gxf3 {[%clk 0:02:57.4]} 10... Bh5 {[%clk 0:03:01.4]} 11. Qd3 {[%clk
0:02:56.3]} 11... e5 {[%clk 0:02:49.6]} 12. dxe5 {[%clk 0:02:46.1]} 12... dxe5
{[%clk 0:02:49.4]} 13. Qxd8+ {[%clk 0:02:44.6]} 13... Rxd8 {[%clk 0:02:50.3]}
14. f4 {[%clk 0:02:45.1]} 14... exf4 {[%clk 0:02:45.5]} 15. Bxf4 {[%clk
0:02:46]} 15... Be7 {[%clk 0:02:44.7]} 16. Bc7 {[%clk 0:02:40.8]} 16... Rc8
{[%clk 0:02:39]} 17. Bxb6 {[%clk 0:02:05.5]} 17... Rb8 {[%clk 0:02:38.9]} 18.
Ba5 {[%clk 0:02:05.9]} 18... Rxb2 {[%clk 0:02:36]} 19. Na3 {[%clk 0:02:02.5]}
19... O-O {[%clk 0:02:29.8]} 20. Reb1 {[%clk 0:01:51.2]} 20... Rfb8 {[%clk
0:02:13.4]} 21. Nc4 {[%clk 0:01:46.7]} 21... Rxb1+ {[%clk 0:02:09.9]} 22. Rxb1
{[%clk 0:01:47.6]} 22... Rxb1+ {[%clk 0:01:53]} 23. Bxb1 {[%clk 0:01:48.5]}
23... Be2 {[%clk 0:01:50.4]} 24. Ne3 {[%clk 0:01:43.4]} 24... Bf3 {[%clk
0:01:46.9]} 25. Bd3 {[%clk 0:01:29.3]} 25... Nxe4 {[%clk 0:01:34.8]} 26. Bxa6
{[%clk 0:01:26.1]} 26... Bh4 {[%clk 0:01:35.4]} 27. Nf5 {[%clk 0:00:44.3]} 27...
Bxf2+ {[%clk 0:01:33.3]} 28. Kf1 {[%clk 0:00:44.8]} 28... g6 {[%clk 0:01:27]}
29. Bb7 {[%clk 0:00:31.2]} 29... Nd2+ {[%clk 0:01:01.2]} 30. Kxf2 {[%clk
0:00:31]} 30... Bxb7 {[%clk 0:01:02.1]} 31. Nd6 {[%clk 0:00:25.5]} 31... Bd5
{[%clk 0:01:02]} 32. a3 {[%clk 0:00:18.9]} 32... Nb1 {[%clk 0:00:58.3]} 33. Bb6
{[%clk 0:00:18.6]} 33... c4 {[%clk 0:00:25.3]} 34. a4 {[%clk 0:00:15.5]} 34...
Nxc3 {[%clk 0:00:24.5]} 35. a5 {[%clk 0:00:16.1]} 35... Na4 {[%clk 0:00:20.4]}
36. Bd4 {[%clk 0:00:14.1]} 36... c3 {[%clk 0:00:21]} 37. Nb5 {[%clk 0:00:13.6]}
37... c2 {[%clk 0:00:19.1]} 38. Be3 {[%clk 0:00:13.9]} 38... Nb2 {[%clk
0:00:16.3]} 39. Ke2 {[%clk 0:00:13.4]} 39... Bc4+ {[%clk 0:00:16.4]} 40. Kd2
{[%clk 0:00:13.7]} 40... Bxb5 {[%clk 0:00:17.3]} 41. Kxc2 {[%clk 0:00:14.1]}
41... Nc4 {[%clk 0:00:18.1]} 42. Bd4 {[%clk 0:00:14.2]} 42... Nxa5 {[%clk
0:00:18.1]} 43. Kd2 {[%clk 0:00:13.9]} 43... Nc6 {[%clk 0:00:19]} 44. Ke3 {[%clk
0:00:14.8]} 44... Nxd4 {[%clk 0:00:19.3]} 45. Kxd4 {[%clk 0:00:15.7]} 45... Bd7
{[%clk 0:00:20.2]} 0-1

[Event "*** Titled Tuesday Blitz"]
[Site "Chess.com"]
[Date "2020.04.14"]
[Round "1"]
[White "PotapovaM"]
[Black "BlackWidow515"]
[Result "1-0"]
[WhiteElo "2522"]
[BlackElo "1963"]
[TimeControl "180+1"]
[EndTime "10:07:30 PDT"]
[Termination "PotapovaM won on time"]

1. d4 {[%clk 0:03:00.9]} 1... d5 {[%clk 0:02:58.3]} 2. c4 {[%clk 0:03:00.7]}
2... e6 {[%clk 0:02:58.4]} 3. Nc3 {[%clk 0:03:00.7]} 3... Nf6 {[%clk 0:02:58.7]}
4. Nf3 {[%clk 0:03:01.1]} 4... Be7 {[%clk 0:02:58.6]} 5. Bf4 {[%clk 0:03:01.3]}
5... O-O {[%clk 0:02:58.4]} 6. e3 {[%clk 0:03:01.7]} 6... b6 {[%clk 0:02:58.4]}
7. cxd5 {[%clk 0:03:01.4]} 7... exd5 {[%clk 0:02:57.5]} 8. Ne5 {[%clk
0:03:01.1]} 8... Bb7 {[%clk 0:02:57.1]} 9. Bd3 {[%clk 0:03:01.3]} 9... Nbd7
{[%clk 0:02:56.6]} 10. O-O {[%clk 0:03:01]} 10... c5 {[%clk 0:02:56]} 11. Qf3
{[%clk 0:03:01.2]} 11... Re8 {[%clk 0:02:50.6]} 12. Qh3 {[%clk 0:02:50.2]} 12...
Nf8 {[%clk 0:02:48.9]} 13. Bb5 {[%clk 0:02:35.7]} 13... Bc8 {[%clk 0:02:43]} 14.
Qf3 {[%clk 0:02:34.3]} 14... Bd7 {[%clk 0:02:21.9]} 15. Nxd7 {[%clk 0:02:32.8]}
15... N8xd7 {[%clk 0:02:15.8]} 16. Nxd5 {[%clk 0:02:26.6]} 16... Nxd5 {[%clk
0:02:06.1]} 17. Qxd5 {[%clk 0:02:27.5]} 17... Nf6 {[%clk 0:02:06.1]} 18. Qxd8
{[%clk 0:02:13.2]} 18... Rexd8 {[%clk 0:02:04.7]} 19. Bc6 {[%clk 0:02:13.4]}
19... Rac8 {[%clk 0:01:55.4]} 20. Bb7 {[%clk 0:02:13]} 20... cxd4 {[%clk
0:01:54.6]} 21. Bxc8 {[%clk 0:02:13.1]} 21... Rxc8 {[%clk 0:01:54.4]} 22. exd4
{[%clk 0:02:13.4]} 22... Nd5 {[%clk 0:01:54.3]} 23. Be5 {[%clk 0:02:12.7]} 23...
f6 {[%clk 0:01:51]} 24. Bg3 {[%clk 0:02:12.3]} 24... Bb4 {[%clk 0:01:48]} 25.
Rac1 {[%clk 0:02:11]} 25... Rd8 {[%clk 0:01:47.7]} 26. a3 {[%clk 0:02:09.1]}
26... Bd2 {[%clk 0:01:45.9]} 27. Rc2 {[%clk 0:02:08.9]} 27... Bg5 {[%clk
0:01:39.7]} 28. Re1 {[%clk 0:02:04.5]} 28... Kf7 {[%clk 0:01:37.5]} 29. h3
{[%clk 0:01:54.5]} 29... h5 {[%clk 0:01:35.8]} 30. h4 {[%clk 0:01:50]} 30... Bh6
{[%clk 0:01:34.3]} 31. Rc6 {[%clk 0:01:44.6]} 31... Rd7 {[%clk 0:01:03.9]} 32.
Rd6 {[%clk 0:01:42.5]} 32... Rxd6 {[%clk 0:01:03.7]} 33. Bxd6 {[%clk 0:01:43.4]}
33... Bd2 {[%clk 0:01:04.2]} 34. Re2 {[%clk 0:01:41.6]} 34... Bh6 {[%clk
0:01:02.7]} 35. g3 {[%clk 0:01:35.8]} 35... g6 {[%clk 0:01:00.4]} 36. Kg2 {[%clk
0:01:35]} 36... Bg7 {[%clk 0:00:55.3]} 37. b4 {[%clk 0:01:31.8]} 37... b5 {[%clk
0:00:46.7]} 38. Bc5 {[%clk 0:01:29]} 38... a6 {[%clk 0:00:45.7]} 39. a4 {[%clk
0:01:20.2]} 39... f5 {[%clk 0:00:41.5]} 40. axb5 {[%clk 0:01:16.2]} 40... axb5
{[%clk 0:00:40.8]} 41. Ra2 {[%clk 0:01:16.8]} 41... Bf6 {[%clk 0:00:29.6]} 42.
Ra5 {[%clk 0:01:15.1]} 42... Nc3 {[%clk 0:00:29.3]} 43. d5 {[%clk 0:01:10.8]}
43... Bd8 {[%clk 0:00:13.6]} 44. Ra7+ {[%clk 0:01:09.1]} 44... Ke8 {[%clk
0:00:11.2]} 45. d6 {[%clk 0:01:03.7]} 45... Nd5 {[%clk 0:00:01.7]} 46. d7+
{[%clk 0:01:01.6]} 46... Kf7 {[%clk 0:00:00.5]} 47. Ra8 {[%clk 0:01:01.5]} 1-0

[Event "*** Titled Tuesday Blitz"]
[Site "Chess.com"]
[Date "2020.04.14"]
[Round "1"]
[White "guillembaches"]
[Black "Durarbayli"]
[Result "1/2-1/2"]
[WhiteElo "2454"]
[BlackElo "2832"]
[TimeControl "180+1"]
[EndTime "10:07:31 PDT"]
[Termination "Game drawn by agreement"]

1. e4 {[%clk 0:03:00.3]} 1... c5 {[%clk 0:02:59.8]} 2. Nf3 {[%clk 0:03:00.1]}
2... d6 {[%clk 0:03:00.3]} 3. d4 {[%clk 0:02:59.4]} 3... cxd4 {[%clk 0:03:00.7]}
4. Nxd4 {[%clk 0:03:00.3]} 4... Nf6 {[%clk 0:03:00.8]} 5. Nc3 {[%clk 0:03:01.2]}
5... Nc6 {[%clk 0:03:01.1]} 6. Be2 {[%clk 0:03:02.1]} 6... e5 {[%clk 0:02:59.7]}
7. Nf3 {[%clk 0:03:00.1]} 7... Be7 {[%clk 0:02:59.3]} 8. Bg5 {[%clk 0:02:58.7]}
8... Be6 {[%clk 0:02:58.9]} 9. O-O {[%clk 0:02:57.9]} 9... O-O {[%clk
0:02:54.2]} 10. Bxf6 {[%clk 0:02:55.5]} 10... Bxf6 {[%clk 0:02:54]} 11. Nd5
{[%clk 0:02:55.5]} 11... Be7 {[%clk 0:02:46.1]} 12. Bc4 {[%clk 0:02:48.9]} 12...
Rc8 {[%clk 0:02:44]} 13. Bb3 {[%clk 0:02:45]} 13... Qd7 {[%clk 0:02:34.8]} 14.
Qe2 {[%clk 0:02:36.9]} 14... Bd8 {[%clk 0:02:21.6]} 15. Rad1 {[%clk 0:02:35.7]}
15... Kh8 {[%clk 0:02:19.3]} 16. Rd2 {[%clk 0:02:29.5]} 16... f5 {[%clk
0:02:19.5]} 17. exf5 {[%clk 0:02:29.1]} 17... Bxf5 {[%clk 0:02:18.5]} 18. Ne3
{[%clk 0:02:20.4]} 18... Be4 {[%clk 0:02:13.6]} 19. c3 {[%clk 0:01:42.6]} 19...
Bxf3 {[%clk 0:01:41.4]} 20. gxf3 {[%clk 0:01:42.6]} 20... Ne7 {[%clk 0:01:42]}
21. Rfd1 {[%clk 0:01:36.1]} 21... Bc7 {[%clk 0:01:39.7]} 22. Nd5 {[%clk
0:01:28.4]} 22... Ng6 {[%clk 0:01:31.9]} 23. Kh1 {[%clk 0:01:20.7]} 23... Qh3
{[%clk 0:01:10.4]} 24. Rg1 {[%clk 0:01:10.2]} 24... Bd8 {[%clk 0:01:01.1]} 25.
Rg3 {[%clk 0:01:03.5]} 25... Qh5 {[%clk 0:00:57.9]} 26. f4 {[%clk 0:00:52.7]}
26... Qxe2 {[%clk 0:00:52.9]} 27. Rxe2 {[%clk 0:00:53.6]} 27... Nxf4 {[%clk
0:00:47.1]} 28. Nxf4 {[%clk 0:00:50.2]} 28... Rxf4 {[%clk 0:00:48]} 29. Rd3
{[%clk 0:00:44.9]} 29... Be7 {[%clk 0:00:47.1]} 30. Bd5 {[%clk 0:00:41.2]} 30...
b6 {[%clk 0:00:47.3]} 31. f3 {[%clk 0:00:40.8]} 31... g6 {[%clk 0:00:46.3]} 32.
Re4 {[%clk 0:00:40.8]} 32... Rf6 {[%clk 0:00:42.7]} 33. Kg2 {[%clk 0:00:38.2]}
33... Kg7 {[%clk 0:00:42.2]} 34. Ra4 {[%clk 0:00:37.1]} 34... Rc7 {[%clk
0:00:42.3]} 35. Rc4 {[%clk 0:00:36.8]} 35... Rxc4 {[%clk 0:00:35]} 36. Bxc4
{[%clk 0:00:37.7]} 36... Rf4 {[%clk 0:00:34.6]} 37. Bd5 {[%clk 0:00:37.1]} 37...
Rh4 {[%clk 0:00:33.4]} 38. h3 {[%clk 0:00:35.4]} 38... Rf4 {[%clk 0:00:31]} 39.
Re3 {[%clk 0:00:33.6]} 39... Rf5 {[%clk 0:00:25.3]} 40. Re4 {[%clk 0:00:32]}
40... a5 {[%clk 0:00:25.6]} 41. Rc4 {[%clk 0:00:31.4]} 41... Bd8 {[%clk
0:00:23.8]} 42. Rc8 {[%clk 0:00:27.1]} 42... Rf8 {[%clk 0:00:23.5]} 43. Rc6
{[%clk 0:00:26.5]} 43... Rf6 {[%clk 0:00:22.9]} 44. Rc8 {[%clk 0:00:25.5]} 44...
Rf8 {[%clk 0:00:22.5]} 45. Rc6 {[%clk 0:00:25.3]} 45... Rf6 {[%clk 0:00:19.2]}
46. Rc8 {[%clk 0:00:23.9]} 1/2-1/2

[Event "*** Titled Tuesday Blitz"]
[Site "Chess.com"]
[Date "2020.04.14"]
[Round "1"]
[White "sergeikim"]
[Black "LuckIsMySkill"]
[Result "0-1"]
[WhiteElo "2390"]
[BlackElo "2747"]
[TimeControl "180+1"]
[EndTime "10:07:33 PDT"]
[Termination "LuckIsMySkill won on time"]

1. d4 {[%clk 0:03:00.9]} 1... g6 {[%clk 0:02:59.7]} 2. c4 {[%clk 0:03:00.2]}
2... Bg7 {[%clk 0:02:59.9]} 3. Nc3 {[%clk 0:03:00.1]} 3... d6 {[%clk 0:03:00]}
4. e4 {[%clk 0:02:59]} 4... e5 {[%clk 0:03:00.2]} 5. d5 {[%clk 0:02:57.9]} 5...
h6 {[%clk 0:02:58.6]} 6. h4 {[%clk 0:02:51.5]} 6... Nd7 {[%clk 0:02:55.6]} 7. h5
{[%clk 0:02:50.4]} 7... g5 {[%clk 0:02:55.1]} 8. Nge2 {[%clk 0:02:47.8]} 8...
Ne7 {[%clk 0:02:54.3]} 9. Ng3 {[%clk 0:02:47.1]} 9... a5 {[%clk 0:02:50.7]} 10.
Be2 {[%clk 0:02:44.2]} 10... Nc5 {[%clk 0:02:44.7]} 11. Be3 {[%clk 0:02:35.4]}
11... O-O {[%clk 0:02:41.5]} 12. Bxc5 {[%clk 0:02:21.2]} 12... dxc5 {[%clk
0:02:42.4]} 13. Bg4 {[%clk 0:02:21.7]} 13... b6 {[%clk 0:02:27.2]} 14. a4 {[%clk
0:02:17.7]} 14... f5 {[%clk 0:02:09.2]} 15. exf5 {[%clk 0:02:16.6]} 15... e4
{[%clk 0:02:09.5]} 16. O-O {[%clk 0:02:04]} 16... Bxc3 {[%clk 0:02:06.1]} 17.
bxc3 {[%clk 0:02:02.8]} 17... Bxf5 {[%clk 0:01:56]} 18. Bxf5 {[%clk 0:02:00]}
18... Nxf5 {[%clk 0:01:56.9]} 19. Nxe4 {[%clk 0:02:00]} 19... Nd6 {[%clk
0:01:50.7]} 20. Nxd6 {[%clk 0:01:57.5]} 20... Qxd6 {[%clk 0:01:51.6]} 21. Re1
{[%clk 0:01:56.1]} 21... Rae8 {[%clk 0:01:51.3]} 22. Qd3 {[%clk 0:01:48.9]}
22... Qf6 {[%clk 0:01:46.3]} 23. Qg3 {[%clk 0:01:45.4]} 23... Qf4 {[%clk
0:01:40.6]} 24. Rxe8 {[%clk 0:01:26.7]} 24... Rxe8 {[%clk 0:01:40]} 25. Qd3
{[%clk 0:00:50.7]} 25... Qe4 {[%clk 0:01:16.4]} 26. Qg3 {[%clk 0:00:43.5]} 26...
Qf4 {[%clk 0:01:01.7]} 27. Qd3 {[%clk 0:00:42.9]} 27... Re4 {[%clk 0:01:01.6]}
28. Rd1 {[%clk 0:00:35.2]} 28... Kf8 {[%clk 0:00:37.9]} 29. g3 {[%clk
0:00:30.6]} 29... Qe5 {[%clk 0:00:37.5]} 30. Qf3+ {[%clk 0:00:26.2]} 30... Ke7
{[%clk 0:00:34.1]} 31. Qd3 {[%clk 0:00:19.2]} 31... g4 {[%clk 0:00:31.8]} 32.
Kg2 {[%clk 0:00:17.4]} 32... Kd6 {[%clk 0:00:23.6]} 33. Qd2 {[%clk 0:00:16.2]}
33... Qxh5 {[%clk 0:00:22.1]} 34. Rh1 {[%clk 0:00:14.6]} 34... Qf5 {[%clk
0:00:17.5]} 35. Rxh6+ {[%clk 0:00:11.4]} 35... Kd7 {[%clk 0:00:17.4]} 36. Rh8
{[%clk 0:00:09.1]} 36... Qf3+ {[%clk 0:00:15.8]} 37. Kg1 {[%clk 0:00:09.1]}
37... Re2 {[%clk 0:00:15.2]} 38. Qf4 {[%clk 0:00:04.6]} 38... Re1+ {[%clk
0:00:14.5]} 0-1